[Event "*** Titled Tuesday Blitz"]
[Site "Chess.com"]
[Date "2020.10.20"]
[Round "4"]
[White "Buffy7"]
[Black "Smirnov_Pavel"]
[Result "0-1"]
[WhiteElo "2659"]
[BlackElo "2879"]
[TimeControl "180+1"]
[EndTime "10:42:02 PDT"]
[Termination "Smirnov_Pavel won by checkmate"]

1. c4 {[%clk 0:03:00.9]} 1... e6 {[%clk 0:02:59.5]} 2. d4 {[%clk 0:02:56.2]}
2... d5 {[%clk 0:02:58.6]} 3. Nc3 {[%clk 0:02:55.2]} 3... c6 {[%clk 0:02:58.7]}
4. e4 {[%clk 0:02:51.3]} 4... dxe4 {[%clk 0:02:58.1]} 5. Nxe4 {[%clk 0:02:52.2]}
5... Bb4+ {[%clk 0:02:58.1]} 6. Bd2 {[%clk 0:02:51.9]} 6... Qxd4 {[%clk
0:02:56.2]} 7. Bxb4 {[%clk 0:02:51.9]} 7... Qxe4+ {[%clk 0:02:56.6]} 8. Be2
{[%clk 0:02:39.9]} 8... Na6 {[%clk 0:02:55.8]} 9. Bc3 {[%clk 0:02:19.7]} 9...
Ne7 {[%clk 0:02:53.2]} 10. Nf3 {[%clk 0:01:58.1]} 10... O-O {[%clk 0:02:52.3]}
11. O-O {[%clk 0:01:56.8]} 11... Ng6 {[%clk 0:02:52]} 12. Re1 {[%clk 0:01:45.9]}
12... Qf4 {[%clk 0:02:51.3]} 13. b4 {[%clk 0:01:17.6]} 13... Qc7 {[%clk
0:02:24.5]} 14. Qc2 {[%clk 0:01:09.5]} 14... Bd7 {[%clk 0:02:08.1]} 15. Bd3
{[%clk 0:01:00.5]} 15... c5 {[%clk 0:02:02.6]} 16. a3 {[%clk 0:00:54.1]} 16...
Rad8 {[%clk 0:01:08.1]} 17. b5 {[%clk 0:00:53.4]} 17... Nb8 {[%clk 0:01:07.2]}
18. h4 {[%clk 0:00:53.9]} 18... Rfe8 {[%clk 0:00:41.9]} 19. h5 {[%clk
0:00:54.1]} 19... Nf8 {[%clk 0:00:41.3]} 20. h6 {[%clk 0:00:54.5]} 20... gxh6
{[%clk 0:00:29.8]} 21. Qc1 {[%clk 0:00:40.3]} 21... e5 {[%clk 0:00:17.5]} 22.
Bxe5 {[%clk 0:00:31.7]} 22... Qb6 {[%clk 0:00:15.5]} 23. Bb2 {[%clk 0:00:19.4]}
23... Rxe1+ {[%clk 0:00:12.4]} 24. Qxe1 {[%clk 0:00:20.3]} 24... Ng6 {[%clk
0:00:12.4]} 25. Qc3 {[%clk 0:00:18.9]} 25... f6 {[%clk 0:00:12.3]} 26. Re1
{[%clk 0:00:18.2]} 26... Rf8 {[%clk 0:00:10]} 27. Be4 {[%clk 0:00:17.4]} 27...
Be6 {[%clk 0:00:07.9]} 28. Qd3 {[%clk 0:00:14.2]} 28... Bf7 {[%clk 0:00:07.2]}
29. Bd5 {[%clk 0:00:10]} 29... Bxd5 {[%clk 0:00:04.7]} 30. Qxd5+ {[%clk
0:00:10.9]} 30... Kg7 {[%clk 0:00:05]} 31. Re6 {[%clk 0:00:10.1]} 31... Qc7
{[%clk 0:00:04]} 32. Qf5 {[%clk 0:00:09.5]} 32... Qf7 {[%clk 0:00:02.9]} 33. g4
{[%clk 0:00:07.1]} 33... Nd7 {[%clk 0:00:02.3]} 34. g5 {[%clk 0:00:07.4]} 34...
hxg5 {[%clk 0:00:01.6]} 35. Nxg5 {[%clk 0:00:08.3]} 35... Qg8 {[%clk 0:00:02.1]}
36. Rd6 {[%clk 0:00:04.9]} 36... Nde5 {[%clk 0:00:01.8]} 37. Ne6+ {[%clk
0:00:05.1]} 37... Kh8 {[%clk 0:00:02.7]} 38. Kf1 {[%clk 0:00:03.7]} 38... Nh4
{[%clk 0:00:03.1]} 39. Qxe5 {[%clk 0:00:02.1]} 39... Qg2+ {[%clk 0:00:02.2]} 40.
Ke2 {[%clk 0:00:02.6]} 40... Qf3+ {[%clk 0:00:02]} 41. Kd2 {[%clk 0:00:02.3]}
41... fxe5 {[%clk 0:00:02.9]} 42. Bxe5+ {[%clk 0:00:02.7]} 42... Kg8 {[%clk
0:00:01.8]} 43. Rd7 {[%clk 0:00:02.6]} 43... Qxf2+ {[%clk 0:00:01.8]} 44. Kc1
{[%clk 0:00:03.2]} 44... Qe1+ {[%clk 0:00:01.8]} 45. Kb2 {[%clk 0:00:04.1]}
45... Qxe5+ {[%clk 0:00:02.4]} 46. Kb3 {[%clk 0:00:05]} 46... Qxe6 {[%clk
0:00:02.4]} 47. Rxb7 {[%clk 0:00:05.9]} 47... Qe3+ {[%clk 0:00:02.6]} 48. Ka4
{[%clk 0:00:06.8]} 48... Qd4 {[%clk 0:00:03.1]} 49. Ka5 {[%clk 0:00:06.7]} 49...
Qxc4 {[%clk 0:00:03.6]} 50. a4 {[%clk 0:00:07.6]} 50... Qb4+ {[%clk 0:00:03.4]}
51. Ka6 {[%clk 0:00:08.5]} 51... Qxa4# {[%clk 0:00:04.1]} 0-1

[Event "*** Titled Tuesday Blitz"]
[Site "Chess.com"]
[Date "2020.10.20"]
[Round "4"]
[White "GameOverBro"]
[Black "GAusal"]
[Result "0-1"]
[WhiteElo "2529"]
[BlackElo "2048"]
[TimeControl "180+1"]
[EndTime "10:42:02 PDT"]
[Termination "GAusal won by resignation"]

1. e4 {[%clk 0:03:00.9]} 1... c5 {[%clk 0:02:55.8]} 2. Ne2 {[%clk 0:03:00.8]}
2... d6 {[%clk 0:02:55.8]} 3. g3 {[%clk 0:03:00.4]} 3... g6 {[%clk 0:02:54.2]}
4. Bg2 {[%clk 0:03:00.6]} 4... Bg7 {[%clk 0:02:54.7]} 5. c3 {[%clk 0:03:00.9]}
5... e6 {[%clk 0:02:54.7]} 6. O-O {[%clk 0:03:00.4]} 6... Ne7 {[%clk 0:02:55.1]}
7. d4 {[%clk 0:03:00.6]} 7... cxd4 {[%clk 0:02:54.6]} 8. cxd4 {[%clk 0:03:00.6]}
8... Nbc6 {[%clk 0:02:54.6]} 9. Nbc3 {[%clk 0:03:00.9]} 9... O-O {[%clk
0:02:51.9]} 10. Be3 {[%clk 0:03:01.2]} 10... a6 {[%clk 0:02:51.3]} 11. Qd2
{[%clk 0:03:00.2]} 11... Bd7 {[%clk 0:02:44.6]} 12. Rfc1 {[%clk 0:02:58.1]}
12... d5 {[%clk 0:02:41.4]} 13. exd5 {[%clk 0:02:51.1]} 13... Nxd5 {[%clk
0:02:40.6]} 14. Nxd5 {[%clk 0:02:51.1]} 14... exd5 {[%clk 0:02:40.1]} 15. Bxd5
{[%clk 0:02:51.5]} 15... Bh3 {[%clk 0:02:34]} 16. Bh1 {[%clk 0:02:41.6]} 16...
Re8 {[%clk 0:02:17.8]} 17. Nf4 {[%clk 0:02:40.1]} 17... Bg4 {[%clk 0:02:13.6]}
18. h3 {[%clk 0:02:27.9]} 18... Bf5 {[%clk 0:02:12.5]} 19. d5 {[%clk 0:02:13.7]}
19... Ne5 {[%clk 0:02:07.4]} 20. g4 {[%clk 0:02:10.4]} 20... Bxg4 {[%clk
0:01:59.4]} 21. hxg4 {[%clk 0:02:07.1]} 21... Nxg4 {[%clk 0:01:59.8]} 22. Bf3
{[%clk 0:01:38.8]} 22... Nxe3 {[%clk 0:01:24.8]} 23. fxe3 {[%clk 0:01:35.8]}
23... Qh4 {[%clk 0:01:15.4]} 24. Bg2 {[%clk 0:01:15.1]} 24... Re5 {[%clk
0:01:07.4]} 25. Re1 {[%clk 0:01:11.6]} 25... Rae8 {[%clk 0:00:59.2]} 26. Qf2
{[%clk 0:01:07.1]} 26... Qg4 {[%clk 0:00:54.2]} 27. Qf3 {[%clk 0:01:01.2]} 27...
Qg5 {[%clk 0:00:53.4]} 28. d6 {[%clk 0:00:55]} 28... h5 {[%clk 0:00:47.9]} 29.
d7 {[%clk 0:00:53.8]} 29... Rd8 {[%clk 0:00:48.1]} 30. Rad1 {[%clk 0:00:54.1]}
30... Qe7 {[%clk 0:00:45.9]} 31. Nd5 {[%clk 0:00:51.3]} 31... Qe6 {[%clk
0:00:40.9]} 32. Bh3 {[%clk 0:00:48.1]} 32... f5 {[%clk 0:00:39.3]} 33. Bg2
{[%clk 0:00:36.8]} 33... Rxd7 {[%clk 0:00:38.4]} 34. Nf4 {[%clk 0:00:36.6]}
34... Rxd1 {[%clk 0:00:27.9]} 35. Nxe6 {[%clk 0:00:27.3]} 35... Rxe1+ {[%clk
0:00:27.6]} 36. Kf2 {[%clk 0:00:26.8]} 36... R5xe3 {[%clk 0:00:24.5]} 37. Qxe3
{[%clk 0:00:25.6]} 37... Rxe3 {[%clk 0:00:23.8]} 38. Kxe3 {[%clk 0:00:25.3]}
38... Bxb2 {[%clk 0:00:23.9]} 39. Bxb7 {[%clk 0:00:25.2]} 39... a5 {[%clk
0:00:22.6]} 40. Bd5 {[%clk 0:00:20.7]} 40... h4 {[%clk 0:00:22.9]} 41. Ng5+
{[%clk 0:00:12.4]} 41... Kg7 {[%clk 0:00:22.8]} 42. Kf3 {[%clk 0:00:09.7]} 42...
Bc1 {[%clk 0:00:22.1]} 43. Ne6+ {[%clk 0:00:09.1]} 43... Kf6 {[%clk 0:00:21.9]}
44. Nc5 {[%clk 0:00:08]} 44... g5 {[%clk 0:00:22.8]} 45. Nb3 {[%clk 0:00:06.8]}
45... g4+ {[%clk 0:00:23.7]} 46. Kg2 {[%clk 0:00:06.5]} 46... Be3 {[%clk
0:00:23.2]} 47. Nxa5 {[%clk 0:00:06.1]} 47... Ke5 {[%clk 0:00:24.1]} 48. Bb7
{[%clk 0:00:05.4]} 48... h3+ {[%clk 0:00:25]} 49. Kh1 {[%clk 0:00:05.2]} 49...
g3 {[%clk 0:00:25.1]} 50. a4 {[%clk 0:00:05.3]} 50... f4 {[%clk 0:00:24.7]} 51.
Nc4+ {[%clk 0:00:05.8]} 51... Kd4 {[%clk 0:00:24]} 52. Nxe3 {[%clk 0:00:05]}
52... Kxe3 {[%clk 0:00:23.4]} 53. a5 {[%clk 0:00:05.9]} 53... f3 {[%clk
0:00:24]} 54. a6 {[%clk 0:00:05.5]} 54... f2 {[%clk 0:00:24.9]} 55. Bg2 {[%clk
0:00:05.8]} 55... Ke2 {[%clk 0:00:25.5]} 56. Bxh3 {[%clk 0:00:04.2]} 56... f1=Q+
{[%clk 0:00:25.5]} 57. Bxf1+ {[%clk 0:00:04.5]} 57... Kxf1 {[%clk 0:00:25.9]}
58. a7 {[%clk 0:00:04.8]} 58... g2+ {[%clk 0:00:26.5]} 59. Kh2 {[%clk
0:00:05.7]} 59... g1=Q+ {[%clk 0:00:27.3]} 60. Kh3 {[%clk 0:00:06.6]} 60... Qxa7
{[%clk 0:00:26.9]} 61. Kh2 {[%clk 0:00:05.5]} 61... Qa4 {[%clk 0:00:27.8]} 62.
Kh1 {[%clk 0:00:05.5]} 62... Qa3 {[%clk 0:00:28.7]} 63. Kh2 {[%clk 0:00:05.7]}
63... Qb2+ {[%clk 0:00:29.2]} 64. Kh1 {[%clk 0:00:06.6]} 64... Qb1 {[%clk
0:00:29.5]} 65. Kh2 {[%clk 0:00:06.9]} 65... Ke2 {[%clk 0:00:30.4]} 66. Kg2
{[%clk 0:00:07.1]} 66... Ke3 {[%clk 0:00:31.3]} 0-1

[Event "*** Titled Tuesday Blitz"]
[Site "Chess.com"]
[Date "2020.10.20"]
[Round "4"]
[White "MasterSonnevanck23"]
[Black "Azatic"]
[Result "0-1"]
[WhiteElo "2345"]
[BlackElo "2563"]
[TimeControl "180+1"]
[EndTime "10:42:02 PDT"]
[Termination "Azatic won on time"]

1. Nf3 {[%clk 0:03:00.9]} 1... c6 {[%clk 0:03:00]} 2. c4 {[%clk 0:02:58.9]} 2...
g6 {[%clk 0:02:59.3]} 3. Nc3 {[%clk 0:02:57.2]} 3... Bg7 {[%clk 0:02:59.6]} 4.
d4 {[%clk 0:02:57.1]} 4... d6 {[%clk 0:02:59.4]} 5. e4 {[%clk 0:02:56.4]} 5...
Nd7 {[%clk 0:02:59.9]} 6. Be2 {[%clk 0:02:50.5]} 6... Ngf6 {[%clk 0:02:59.3]} 7.
O-O {[%clk 0:02:49.5]} 7... O-O {[%clk 0:02:58.9]} 8. Be3 {[%clk 0:02:49.1]}
8... e5 {[%clk 0:02:57.1]} 9. Qd2 {[%clk 0:02:48.1]} 9... Re8 {[%clk 0:02:28.5]}
10. d5 {[%clk 0:02:47.2]} 10... Nc5 {[%clk 0:02:26.8]} 11. Qc2 {[%clk
0:02:39.4]} 11... cxd5 {[%clk 0:02:25.6]} 12. cxd5 {[%clk 0:02:37.8]} 12... Nh5
{[%clk 0:01:50.8]} 13. Rfe1 {[%clk 0:02:22.7]} 13... Nf4 {[%clk 0:01:49.6]} 14.
Bf1 {[%clk 0:02:22.6]} 14... Bg4 {[%clk 0:01:49.3]} 15. Nd2 {[%clk 0:02:22.1]}
15... Rc8 {[%clk 0:01:47.6]} 16. Nc4 {[%clk 0:02:10.7]} 16... a6 {[%clk
0:01:14.3]} 17. a4 {[%clk 0:02:10]} 17... Qf6 {[%clk 0:01:05.4]} 18. a5 {[%clk
0:01:57]} 18... Qg5 {[%clk 0:00:53.8]} 19. Nb6 {[%clk 0:01:50.2]} 19... Rc7
{[%clk 0:00:42.6]} 20. Nca4 {[%clk 0:01:29.2]} 20... Bf3 {[%clk 0:00:34.2]} 21.
g3 {[%clk 0:01:27.7]} 21... Bxe4 {[%clk 0:00:30.3]} 22. Qc1 {[%clk 0:01:14.8]}
22... Qg4 {[%clk 0:00:25.7]} 23. Nxc5 {[%clk 0:01:05.3]} 23... Qf3 {[%clk
0:00:21.8]} 24. Nxe4 {[%clk 0:01:02]} 24... Rxc1 {[%clk 0:00:21.8]} 25. Raxc1
{[%clk 0:00:57.1]} 25... Qxe4 {[%clk 0:00:19]} 26. Bxf4 {[%clk 0:00:56.8]} 26...
Qb4 {[%clk 0:00:18.9]} 27. Be3 {[%clk 0:00:53.8]} 27... Qxa5 {[%clk 0:00:18.8]}
28. Nc4 {[%clk 0:00:52.1]} 28... Qb4 {[%clk 0:00:18.2]} 29. Bd2 {[%clk
0:00:49.1]} 29... Qc5 {[%clk 0:00:14.3]} 30. Nxe5 {[%clk 0:00:45.6]} 30... Qxd5
{[%clk 0:00:13.7]} 31. Nc4 {[%clk 0:00:37.4]} 31... Rxe1 {[%clk 0:00:12.8]} 32.
Bxe1 {[%clk 0:00:35.1]} 32... h5 {[%clk 0:00:13.4]} 33. Ne3 {[%clk 0:00:32.7]}
33... Qe6 {[%clk 0:00:12.5]} 34. Bc4 {[%clk 0:00:31.9]} 34... Qe4 {[%clk
0:00:12.7]} 35. Bd5 {[%clk 0:00:31.2]} 35... Qa4 {[%clk 0:00:12.2]} 36. Rc7
{[%clk 0:00:27.7]} 36... Qa1 {[%clk 0:00:11.2]} 37. Kf1 {[%clk 0:00:24.6]} 37...
Bxb2 {[%clk 0:00:11.7]} 38. Rxf7 {[%clk 0:00:22.9]} 38... Kh8 {[%clk 0:00:12.1]}
39. Rc7 {[%clk 0:00:15.1]} 39... a5 {[%clk 0:00:12.5]} 40. Nc2 {[%clk
0:00:13.6]} 40... Qd1 {[%clk 0:00:11.4]} 41. Be4 {[%clk 0:00:09.1]} 41... a4
{[%clk 0:00:10.4]} 42. Rxb7 {[%clk 0:00:08.1]} 42... Bc3 {[%clk 0:00:09.7]} 43.
Kg2 {[%clk 0:00:06.8]} 43... Bxe1 {[%clk 0:00:09.3]} 44. Nxe1 {[%clk 0:00:06.3]}
44... Qxe1 {[%clk 0:00:10.2]} 45. Bxg6 {[%clk 0:00:06]} 45... a3 {[%clk
0:00:10.7]} 46. Ra7 {[%clk 0:00:05.5]} 46... Qb4 {[%clk 0:00:10.7]} 47. Bxh5
{[%clk 0:00:04]} 47... Kg8 {[%clk 0:00:08.2]} 48. Bf3 {[%clk 0:00:03.3]} 48...
Kf8 {[%clk 0:00:08.3]} 49. Bd5 {[%clk 0:00:02.8]} 49... Qc5 {[%clk 0:00:08.6]}
0-1

[Event "*** Titled Tuesday Blitz"]
[Site "Chess.com"]
[Date "2020.10.20"]
[Round "4"]
[White "Rozum_Ivan"]
[Black "dragos420"]
[Result "1-0"]
[WhiteElo "2735"]
[BlackElo "2498"]
[TimeControl "180+1"]
[EndTime "10:42:04 PDT"]
[Termination "Rozum_Ivan won on time"]

1. c4 {[%clk 0:03:00.9]} 1... e5 {[%clk 0:02:57.7]} 2. Nc3 {[%clk 0:02:59]} 2...
Nf6 {[%clk 0:02:57.7]} 3. g3 {[%clk 0:02:58.8]} 3... c6 {[%clk 0:02:56.2]} 4.
Nf3 {[%clk 0:02:57.6]} 4... e4 {[%clk 0:02:55.6]} 5. Nd4 {[%clk 0:02:57.8]} 5...
d5 {[%clk 0:02:49.5]} 6. cxd5 {[%clk 0:02:58.7]} 6... cxd5 {[%clk 0:02:50.4]} 7.
d3 {[%clk 0:02:58.4]} 7... Bc5 {[%clk 0:02:48.1]} 8. Nb3 {[%clk 0:02:55]} 8...
Bb4 {[%clk 0:02:47.4]} 9. dxe4 {[%clk 0:02:48.7]} 9... Nxe4 {[%clk 0:02:42.5]}
10. Bd2 {[%clk 0:02:47.5]} 10... Nxd2 {[%clk 0:02:41.7]} 11. Qxd2 {[%clk
0:02:48.4]} 11... O-O {[%clk 0:02:39.8]} 12. Bg2 {[%clk 0:02:45.3]} 12... Be6
{[%clk 0:02:39.1]} 13. O-O {[%clk 0:02:40.3]} 13... Nc6 {[%clk 0:02:32.6]} 14.
Rfd1 {[%clk 0:02:36.2]} 14... Qf6 {[%clk 0:02:27.3]} 15. Nxd5 {[%clk 0:02:22.8]}
15... Bxd5 {[%clk 0:02:25.7]} 16. Qxd5 {[%clk 0:02:23.7]} 16... Qxb2 {[%clk
0:01:44.4]} 17. Qb5 {[%clk 0:02:23.4]} 17... Rab8 {[%clk 0:01:02.3]} 18. Rdb1
{[%clk 0:01:40.9]} 18... Qf6 {[%clk 0:00:51.6]} 19. e3 {[%clk 0:01:33]} 19...
Bc3 {[%clk 0:00:48.5]} 20. Nc5 {[%clk 0:01:23.5]} 20... Bxa1 {[%clk 0:00:43.8]}
21. Nd7 {[%clk 0:01:23.7]} 21... Qd8 {[%clk 0:00:24]} 22. Nxb8 {[%clk
0:01:20.3]} 22... Nxb8 {[%clk 0:00:24]} 23. Rxa1 {[%clk 0:01:18.7]} 23... b6
{[%clk 0:00:24.5]} 24. Rc1 {[%clk 0:01:15.6]} 24... Qd2 {[%clk 0:00:20.4]} 25.
Qc4 {[%clk 0:01:15.2]} 25... Nd7 {[%clk 0:00:18.1]} 26. Qc2 {[%clk 0:01:09]}
26... Qxc2 {[%clk 0:00:17.8]} 27. Rxc2 {[%clk 0:01:09.9]} 27... Nc5 {[%clk
0:00:18.3]} 28. Rd2 {[%clk 0:01:09.1]} 28... Rc8 {[%clk 0:00:18]} 29. Bh3 {[%clk
0:01:04.3]} 29... Rb8 {[%clk 0:00:17.6]} 30. Bf5 {[%clk 0:01:02.5]} 30... g6
{[%clk 0:00:17.4]} 31. Bc2 {[%clk 0:01:02.7]} 31... Kf8 {[%clk 0:00:18.3]} 32.
Rd4 {[%clk 0:00:49.4]} 32... Rc8 {[%clk 0:00:17.5]} 33. Kf1 {[%clk 0:00:41.9]}
33... Ke7 {[%clk 0:00:16.6]} 34. Ke2 {[%clk 0:00:41.1]} 34... h5 {[%clk
0:00:15.9]} 35. Rc4 {[%clk 0:00:39.7]} 35... Rd8 {[%clk 0:00:14.8]} 36. e4
{[%clk 0:00:36.7]} 36... Ne6 {[%clk 0:00:13.4]} 37. Ke3 {[%clk 0:00:36.2]} 37...
Rd7 {[%clk 0:00:13.3]} 38. Bb3 {[%clk 0:00:33.3]} 38... Rc7 {[%clk 0:00:12.4]}
39. Rb4 {[%clk 0:00:30.6]} 39... Nc5 {[%clk 0:00:11.9]} 40. Bd5 {[%clk
0:00:30.4]} 40... Nd7 {[%clk 0:00:10.7]} 41. Ra4 {[%clk 0:00:27.1]} 41... Nc5
{[%clk 0:00:10.1]} 42. Ra3 {[%clk 0:00:25.9]} 42... f6 {[%clk 0:00:10.5]} 43. f4
{[%clk 0:00:25.4]} 43... Kd6 {[%clk 0:00:09.7]} 44. Kd4 {[%clk 0:00:23.9]} 44...
Re7 {[%clk 0:00:09.3]} 45. Rc3 {[%clk 0:00:22.6]} 45... Rd7 {[%clk 0:00:06.8]}
46. h4 {[%clk 0:00:19.4]} 46... Re7 {[%clk 0:00:04.2]} 47. Rc2 {[%clk
0:00:17.8]} 47... Re8 {[%clk 0:00:03.9]} 48. Re2 {[%clk 0:00:16.9]} 48... Re7
{[%clk 0:00:04]} 49. e5+ {[%clk 0:00:17.3]} 49... fxe5+ {[%clk 0:00:04.9]} 50.
fxe5+ {[%clk 0:00:18.2]} 50... Kd7 {[%clk 0:00:05.6]} 51. Rf2 {[%clk 0:00:17.4]}
51... Ne6+ {[%clk 0:00:02.7]} 52. Bxe6+ {[%clk 0:00:17.3]} 52... Rxe6 {[%clk
0:00:03.6]} 53. Kd5 {[%clk 0:00:16.9]} 53... Re7 {[%clk 0:00:01.4]} 54. Rf6
{[%clk 0:00:16.8]} 1-0

[Event "*** Titled Tuesday Blitz"]
[Site "Chess.com"]
[Date "2020.10.20"]
[Round "4"]
[White "RasSanti"]
[Black "As0nchess"]
[Result "0-1"]
[WhiteElo "2286"]
[BlackElo "2603"]
[TimeControl "180+1"]
[EndTime "10:42:04 PDT"]
[Termination "As0nchess won by resignation"]

1. d4 {[%clk 0:03:00.9]} 1... Nf6 {[%clk 0:03:00.1]} 2. Bg5 {[%clk 0:02:56.3]}
2... Ne4 {[%clk 0:02:58.5]} 3. Bf4 {[%clk 0:02:56]} 3... d5 {[%clk 0:02:58.1]}
4. e3 {[%clk 0:02:52.1]} 4... c5 {[%clk 0:02:57.3]} 5. c3 {[%clk 0:02:50.6]}
5... Nc6 {[%clk 0:02:53.5]} 6. Nd2 {[%clk 0:02:48.4]} 6... Nf6 {[%clk
0:02:35.3]} 7. Ngf3 {[%clk 0:02:34.8]} 7... Qb6 {[%clk 0:02:27.4]} 8. Rb1 {[%clk
0:02:34.1]} 8... Bf5 {[%clk 0:02:25.9]} 9. Rc1 {[%clk 0:02:12.7]} 9... cxd4
{[%clk 0:02:20.2]} 10. Nxd4 {[%clk 0:01:58.1]} 10... Nxd4 {[%clk 0:02:14.3]} 11.
exd4 {[%clk 0:01:47.1]} 11... Qxb2 {[%clk 0:02:00.5]} 12. a4 {[%clk 0:01:46.8]}
12... a6 {[%clk 0:01:54.3]} 13. Be2 {[%clk 0:01:44.9]} 13... e6 {[%clk
0:01:48.7]} 14. O-O {[%clk 0:01:35.1]} 14... Be7 {[%clk 0:01:40.8]} 15. Nb3
{[%clk 0:01:22.8]} 15... O-O {[%clk 0:01:34.9]} 16. Nc5 {[%clk 0:01:17.6]} 16...
Bxc5 {[%clk 0:01:32.9]} 17. dxc5 {[%clk 0:01:18.5]} 17... Rfc8 {[%clk
0:01:27.9]} 18. Be3 {[%clk 0:00:57.7]} 18... Ne4 {[%clk 0:01:19.5]} 19. Rb1
{[%clk 0:00:47.2]} 19... Qxc3 {[%clk 0:01:19.4]} 20. Rxb7 {[%clk 0:00:46.5]}
20... Nxc5 {[%clk 0:01:17.2]} 21. Bxc5 {[%clk 0:00:28.2]} 21... Qxc5 {[%clk
0:01:16.6]} 22. Bd3 {[%clk 0:00:26.8]} 22... Bxd3 {[%clk 0:01:15.5]} 23. Qxd3
{[%clk 0:00:27.7]} 23... Rc7 {[%clk 0:01:04]} 24. Rb3 {[%clk 0:00:23.8]} 24...
Qc4 {[%clk 0:00:52.8]} 25. Qg3 {[%clk 0:00:22.8]} 25... h6 {[%clk 0:00:48.1]}
26. Rf3 {[%clk 0:00:18.8]} 26... Rac8 {[%clk 0:00:45.6]} 27. a5 {[%clk
0:00:17.7]} 27... d4 {[%clk 0:00:42.9]} 28. h3 {[%clk 0:00:16.6]} 28... Rd7
{[%clk 0:00:41.9]} 29. Rd1 {[%clk 0:00:16.4]} 29... Rcd8 {[%clk 0:00:40.7]} 30.
Rdd3 {[%clk 0:00:15.8]} 30... Qc1+ {[%clk 0:00:39.6]} 31. Kh2 {[%clk 0:00:15.9]}
31... Qc7 {[%clk 0:00:40.2]} 32. Rf4 {[%clk 0:00:15.9]} 32... e5 {[%clk
0:00:39.7]} 33. Rg4 {[%clk 0:00:15.2]} 33... f6 {[%clk 0:00:38.1]} 34. f4 {[%clk
0:00:12.5]} 34... e4 {[%clk 0:00:36.1]} 35. Rd1 {[%clk 0:00:12.5]} 35... d3
{[%clk 0:00:35.9]} 36. Qe3 {[%clk 0:00:12.5]} 36... f5 {[%clk 0:00:34.7]} 37.
Rg6 {[%clk 0:00:12.2]} 37... Rd6 {[%clk 0:00:30.7]} 38. Rxd6 {[%clk 0:00:11.6]}
38... Qxd6 {[%clk 0:00:31]} 39. g4 {[%clk 0:00:12.5]} 39... Rf8 {[%clk
0:00:28.5]} 40. gxf5 {[%clk 0:00:11.8]} 40... Rxf5 {[%clk 0:00:28.8]} 41. Kg3
{[%clk 0:00:12.4]} 41... g5 {[%clk 0:00:27.8]} 42. Qxe4 {[%clk 0:00:11.6]} 42...
Rxf4 {[%clk 0:00:25.5]} 43. Qe8+ {[%clk 0:00:10.9]} 43... Kg7 {[%clk 0:00:24.4]}
44. Kg2 {[%clk 0:00:10.4]} 44... d2 {[%clk 0:00:22.9]} 45. Qe3 {[%clk
0:00:09.2]} 45... Qd5+ {[%clk 0:00:20.8]} 46. Kg3 {[%clk 0:00:08.3]} 46... Qd6
{[%clk 0:00:20.8]} 47. Kg2 {[%clk 0:00:07.5]} 47... Rd4 {[%clk 0:00:20.7]} 48.
Qc3 {[%clk 0:00:06.9]} 48... Kg6 {[%clk 0:00:20.4]} 49. Qc2+ {[%clk 0:00:06.3]}
49... Kh5 {[%clk 0:00:19.7]} 50. Qc3 {[%clk 0:00:06]} 50... Qd5+ {[%clk
0:00:19.7]} 51. Qf3+ {[%clk 0:00:05.7]} 51... Qxf3+ {[%clk 0:00:19.5]} 52. Kxf3
{[%clk 0:00:06.6]} 52... Kh4 {[%clk 0:00:19.4]} 53. Ke2 {[%clk 0:00:06.6]} 53...
Kxh3 {[%clk 0:00:19]} 54. Rxd2 {[%clk 0:00:04.9]} 54... Rxd2+ {[%clk 0:00:18.9]}
55. Kxd2 {[%clk 0:00:05.8]} 55... g4 {[%clk 0:00:19.8]} 0-1

[Event "*** Titled Tuesday Blitz"]
[Site "Chess.com"]
[Date "2020.10.20"]
[Round "4"]
[White "Rakesh"]
[Black "Gabrielian_Artur"]
[Result "0-1"]
[WhiteElo "2455"]
[BlackElo "2773"]
[TimeControl "180+1"]
[EndTime "10:42:04 PDT"]
[Termination "Gabrielian_Artur won on time"]

1. e4 {[%clk 0:00:52.6]} 1... c5 {[%clk 0:02:58.7]} 2. c3 {[%clk 0:00:52.8]}
2... d6 {[%clk 0:02:55.7]} 3. d4 {[%clk 0:00:53]} 3... Nf6 {[%clk 0:02:55.5]} 4.
Bd3 {[%clk 0:00:52.7]} 4... Qc7 {[%clk 0:02:55.3]} 5. Nf3 {[%clk 0:00:53.1]}
5... g6 {[%clk 0:02:55.3]} 6. h3 {[%clk 0:00:53.3]} 6... Bg7 {[%clk 0:02:55.6]}
7. O-O {[%clk 0:00:53.8]} 7... O-O {[%clk 0:02:55.7]} 8. Be3 {[%clk 0:00:54.3]}
8... b6 {[%clk 0:02:55.2]} 9. Qe2 {[%clk 0:00:54.8]} 9... Bb7 {[%clk 0:02:55.2]}
10. Nbd2 {[%clk 0:00:54.3]} 10... a6 {[%clk 0:02:54.3]} 11. Rad1 {[%clk
0:00:53.8]} 11... b5 {[%clk 0:02:50.3]} 12. Rfe1 {[%clk 0:00:54]} 12... e5
{[%clk 0:02:49.1]} 13. d5 {[%clk 0:00:49.6]} 13... c4 {[%clk 0:02:46.6]} 14. Bb1
{[%clk 0:00:49.5]} 14... Nbd7 {[%clk 0:02:46.8]} 15. Nf1 {[%clk 0:00:48.5]}
15... Nc5 {[%clk 0:02:45.9]} 16. Ng3 {[%clk 0:00:49.4]} 16... a5 {[%clk
0:02:44.8]} 17. Ng5 {[%clk 0:00:49.2]} 17... h6 {[%clk 0:02:39.6]} 18. Nf3
{[%clk 0:00:49.1]} 18... Ba6 {[%clk 0:02:39.1]} 19. Qd2 {[%clk 0:00:49.2]} 19...
Kh7 {[%clk 0:02:38.7]} 20. Nh4 {[%clk 0:00:49.4]} 20... b4 {[%clk 0:02:35.8]}
21. f4 {[%clk 0:00:48.5]} 21... Nd3 {[%clk 0:02:33.9]} 22. Rf1 {[%clk
0:00:46.8]} 22... bxc3 {[%clk 0:02:29.2]} 23. bxc3 {[%clk 0:00:47.7]} 23... exf4
{[%clk 0:02:18]} 24. Bxf4 {[%clk 0:00:47.5]} 24... Rab8 {[%clk 0:02:08.3]} 25.
Bxd3 {[%clk 0:00:38.9]} 25... cxd3 {[%clk 0:02:07.7]} 26. Ngf5 {[%clk
0:00:39.1]} 26... gxf5 {[%clk 0:02:04.1]} 27. Nxf5 {[%clk 0:00:40]} 27... Nxe4
{[%clk 0:02:02.6]} 28. Qe1 {[%clk 0:00:31.8]} 28... Rbe8 {[%clk 0:01:37.7]} 29.
Qh4 {[%clk 0:00:27.5]} 29... Qd8 {[%clk 0:01:35.5]} 30. Qg4 {[%clk 0:00:22.4]}
30... Rg8 {[%clk 0:01:35.7]} 31. Nxg7 {[%clk 0:00:12.6]} 31... Rxg7 {[%clk
0:01:34.5]} 32. Qf5+ {[%clk 0:00:13.1]} 32... Kg8 {[%clk 0:01:33.4]} 33. Bxh6
{[%clk 0:00:12.2]} 33... Ng3 {[%clk 0:01:28.8]} 34. Qf3 {[%clk 0:00:06]} 34...
Nxf1 {[%clk 0:01:21.7]} 35. Bxg7 {[%clk 0:00:05.7]} 35... Kxg7 {[%clk
0:01:15.9]} 36. Rxf1 {[%clk 0:00:06.1]} 36... Qe7 {[%clk 0:01:05.8]} 37. Qg4+
{[%clk 0:00:06.3]} 37... Kf8 {[%clk 0:01:05.1]} 38. Qh5 {[%clk 0:00:06.8]} 38...
Qe3+ {[%clk 0:00:48.7]} 39. Kh1 {[%clk 0:00:06.7]} 39... Ke7 {[%clk 0:00:48]}
40. Rxf7+ {[%clk 0:00:03.8]} 40... Kd8 {[%clk 0:00:48.2]} 41. Qh4+ {[%clk
0:00:03.9]} 41... Re7 {[%clk 0:00:44.7]} 42. Rf8+ {[%clk 0:00:03.5]} 42... Kc7
{[%clk 0:00:40.6]} 43. Qg4 {[%clk 0:00:03.6]} 43... d2 {[%clk 0:00:28.1]} 44.
Qa4 {[%clk 0:00:01.4]} 44... Qe1+ {[%clk 0:00:19.6]} 45. Kh2 {[%clk 0:00:01.5]}
45... Qe5+ {[%clk 0:00:20.1]} 46. Kh1 {[%clk 0:00:01.1]} 46... Qxc3 {[%clk
0:00:20.8]} 47. Kh2 {[%clk 0:00:01.2]} 47... Qc5 {[%clk 0:00:18.9]} 48. Kh1
{[%clk 0:00:01.1]} 48... Re1+ {[%clk 0:00:18]} 49. Kh2 {[%clk 0:00:02]} 49...
Qg1+ {[%clk 0:00:17.7]} 50. Kg3 {[%clk 0:00:01.7]} 50... Qe3+ {[%clk 0:00:18]}
51. Kh2 {[%clk 0:00:02]} 51... Qe5+ {[%clk 0:00:18.2]} 0-1